bitfinex/quotes_BTCUSD_20250410
["timestamp","ask_amount","ask_price","bid_price","bid_amount"]
[1744243996002,0.242409,82505.0,82503.0,0.00059462]
[1744243996139,0.242412,82504.0,82503.0,0.00059462]
[1744243996339,0.242409,82505.0,82503.0,0.00059462]
[1744243996750,0.254529,82505.0,82503.0,0.00059462]
[1744243997928,0.242409,82505.0,82503.0,0.00059462]
[1744243998470,0.242397,82509.0,82505.0,0.242409]
[1744243998673,0.242394,82511.0,82506.0,0.01454388]
[1744243998842,0.012118,82516.0,82506.0,0.01454388]
[1744243998843,0.242388,82514.0,82509.0,0.242396]
[1744243999047,0.242392,82511.0,82509.0,0.00242372]
[1744243999240,0.242382,82515.0,82509.0,0.012119]
[1744243999449,0.242377,82516.0,82512.0,0.012119]
[1744243999644,0.242377,82516.0,82511.0,0.254508]
[1744243999850,0.242386,82513.0,82512.0,0.00242369]
[1744244000067,0.242385,82514.0,82511.0,0.242391]
[1744244000269,0.242385,82514.0,82512.0,0.242387]
[1744244000704,0.242379,82516.0,82513.0,0.242385]
[1744244000956,0.242374,82517.0,82514.0,0.0475]
[1744244001129,0.242374,82517.0,82514.0,0.289883]
[1744244002128,0.242378,82516.0,82514.0,0.0475]
[1744244003491,0.24238,82515.0,82514.0,0.0475]
[1744244003847,0.242378,82516.0,82514.0,0.0475]
[1744244004419,0.24238,82515.0,82514.0,0.0475]
[1744244004607,0.242386,82513.0,82511.0,0.242391]
[1744244004772,0.242383,82514.0,82511.0,0.242391]
[1744244004955,0.24238,82515.0,82511.0,0.242391]
[1744244005156,0.24238,82515.0,82512.0,0.242388]
[1744244005575,0.242384,82514.0,82511.0,0.242391]
[1744244006488,0.242387,82513.0,82509.0,0.302016]
[1744244006722,0.24239,82512.0,82509.0,0.41045082]
[1744244006901,0.24239,82512.0,82509.0,0.36295082]
[1744244007057,0.012119,82513.0,82510.0,0.242394]
[1744244007466,0.254502,82514.0,82510.0,0.242394]
[1744244008066,0.24239,82512.0,82509.0,0.37506982]
[1744244008273,0.242386,82513.0,82510.0,0.242394]
[1744244008710,0.242386,82513.0,82512.0,0.12]
[1744244010436,0.254505,82513.0,82512.0,0.12]
[1744244011168,0.254532,82504.0,82503.0,0.00059462]
[1744244012036,0.24241,82505.0,82503.0,0.00059462]
[1744244012234,0.242412,82504.0,82503.0,0.00059462]
[1744244012650,0.254527,82506.0,82503.0,0.00059462]
[1744244012845,0.242411,82505.0,82503.0,0.00059462]
[1744244013047,0.242409,82505.0,82503.0,0.00059462]
[1744244013416,0.242406,82506.0,82503.0,0.24300962]
[1744244013618,0.242409,82505.0,82503.0,0.00059462]
[1744244014624,0.254526,82506.0,82503.0,0.00059462]
[1744244015041,0.242412,82505.0,82503.0,0.00059462]
[1744244015242,0.242403,82508.0,82503.0,0.00059462]
[1744244015443,0.242406,82507.0,82503.0,0.01271462]
[1744244015645,0.01212,82508.0,82503.0,0.24300662]
[1744244015902,0.242409,82506.0,82503.0,0.24300662]
[1744244016260,0.242409,82506.0,82503.0,0.24300962]
[1744244016661,0.242403,82507.0,82504.0,0.242412]
[1744244017242,0.242407,82506.0,82503.0,0.24300962]
[1744244017870,0.242407,82506.0,82504.0,0.242412]
[1744244018671,0.25452,82508.0,82505.0,0.242409]
[1744244018866,0.2424,82509.0,82505.0,0.01212]
[1744244019696,0.242403,82507.0,82505.0,0.242409]
[1744244021314,0.242403,82507.0,82504.0,0.242412]
[1744244021520,0.01212,82505.0,82503.0,0.00059462]
[1744244021729,0.242412,82504.0,82503.0,0.00059462]
[1744244021855,0.242411,82505.0,82503.0,0.00059462]
[1744244024187,0.254506,82513.0,82504.0,0.01212]
[1744244024422,0.254516,82510.0,82506.0,0.242405]
[1744244024618,0.242401,82508.0,82505.0,0.24482976]
[1744244024847,0.242401,82508.0,82505.0,0.242406]
[1744244025061,0.242403,82509.0,82506.0,0.242404]
[1744244025270,0.242402,82508.0,82505.0,0.242406]
[1744244025744,0.242397,82510.0,82506.0,0.242405]
[1744244025947,0.012118,82517.0,82510.0,0.242392]
[1744244026173,0.242387,82513.0,82511.0,0.00242364]
[1744244026416,0.242387,82513.0,82510.0,0.242392]
[1744244026789,0.242389,82512.0,82510.0,0.242392]
[1744244027499,0.242387,82513.0,82510.0,0.242392]
[1744244027711,0.24238,82515.0,82510.0,0.012119]
[1744244027911,0.012118,82516.0,82511.0,0.012119]
[1744244028119,0.242377,82516.0,82512.0,0.00242368]
[1744244028314,0.242386,82513.0,82510.0,0.242389]
[1744244028681,0.242383,82514.0,82511.0,0.242389]
[1744244028896,0.242377,82516.0,82511.0,0.012119]
[1744244029095,0.242384,82514.0,82511.0,0.254508]
[1744244029318,0.242386,82513.0,82511.0,0.242389]
[1744244029807,0.242383,82514.0,82512.0,0.242388]
[1744244030015,0.242383,82514.0,82511.0,0.242389]
[1744244030596,0.242383,82514.0,82512.0,0.242388]
[1744244030723,0.242383,82514.0,82511.0,0.242389]
[1744244033183,0.242372,82518.0,82515.0,0.242379]
[1744244033614,0.242377,82516.0,82513.0,0.24238]
[1744244033774,0.242377,82516.0,82512.0,0.242383]
[1744244033974,0.242384,82514.0,82512.0,0.242383]
[1744244034259,0.242384,82514.0,82511.0,0.242391]
[1744244034943,0.242384,82514.0,82510.0,0.254513]
[1744244036430,0.242384,82514.0,82512.0,0.242388]
[1744244037003,0.242384,82514.0,82510.0,0.242394]
[1744244037401,0.242384,82514.0,82511.0,0.242389]
[1744244038307,0.242384,82514.0,82511.0,0.242391]
[1744244038501,0.01212,82506.0,82499.0,0.0491]
[1744244038717,0.012119,82509.0,82503.0,0.40124962]
[1744244038718,0.242406,82507.0,82503.0,0.40124962]
[1744244038946,0.242407,82506.0,82503.0,0.40124962]
[1744244039146,0.242406,82506.0,82503.0,0.15883462]
[1744244039349,0.242412,82505.0,82503.0,0.15883462]
[1744244039577,0.242412,82505.0,82503.0,0.40124862]
[1744244040012,0.254525,82507.0,82503.0,0.40124862]
[1744244040422,0.242408,82506.0,82503.0,0.40124862]
[1744244041109,0.242409,82505.0,82503.0,0.15883462]
[1744244041344,0.242408,82506.0,82503.0,0.40124862]
[1744244042122,0.242404,82507.0,82504.0,0.242411]
[1744244042922,0.242404,82507.0,82503.0,0.15883462]
[1744244043067,0.242408,82506.0,82503.0,0.15883462]
[1744244043268,0.242408,82506.0,82503.0,0.40124962]
[1744244043468,0.254524,82507.0,82503.0,0.40124962]
[1744244043683,0.254524,82507.0,82504.0,0.24241]
[1744244044143,0.242404,82507.0,82504.0,0.24241]
[1744244044342,0.24241,82505.0,82503.0,0.15883462]
[1744244044812,0.254523,82507.0,82503.0,0.40124962]
[1744244045017,0.254523,82507.0,82504.0,0.242411]
[1744244045186,0.254523,82507.0,82505.0,0.12]
[1744244045814,0.242406,82506.0,82505.0,0.12]
[1744244046448,0.254523,82507.0,82505.0,0.12]
[1744244047043,0.242406,82506.0,82505.0,0.12]
[1744244048119,0.254523,82507.0,82505.0,0.12]
[1744244049672,0.254526,82506.0,82505.0,0.12]
[1744244050222,0.26297806,82506.0,82505.0,0.12]
[1744244050448,0.2742463,82506.0,82505.0,0.12]
[1744244050852,0.29678199,82506.0,82505.0,0.12]
[1744244053929,0.2742463,82506.0,82505.0,0.12]
[1744244054131,0.26579424,82506.0,82505.0,0.12]
[1744244054690,0.28033509,82506.0,82505.0,0.12]
[1744244054898,0.26906685,82506.0,82505.0,0.12]
[1744244055073,0.31876685,82506.0,82505.0,0.12]
[1744244055277,0.254532,82504.0,82503.0,0.00059462]
[1744244055498,0.27751871,82504.0,82503.0,0.00059462]
[1744244060393,0.26907285,82504.0,82503.0,0.00059462]
[1744244063180,0.254532,82504.0,82503.0,0.00059462]
[1744244063360,0.242403,82507.0,82503.0,0.24300362]
[1744244063519,0.242407,82506.0,82503.0,0.24300362]
[1744244063961,0.254532,82504.0,82503.0,0.00059462]
[1744244064562,0.242412,82504.0,82503.0,0.00059462]
[1744244065122,0.254532,82504.0,82503.0,0.00059462]
[1744244065531,0.254529,82505.0,82503.0,0.00059462]
[1744244065709,0.254532,82504.0,82503.0,0.00059462]
[1744244066511,0.242412,82504.0,82503.0,0.00059462]
[1744244066713,0.242409,82505.0,82503.0,0.00059462]
[1744244066913,0.0003378,82547.0,82509.0,0.0484]
[1744244066914,0.242394,82510.0,82509.0,0.0484]
[1744244067113,0.254513,82510.0,82509.0,0.0484]
[1744244068261,0.012119,82512.0,82509.0,0.0484]
[1744244068550,0.242391,82511.0,82509.0,0.0484]
[1744244069280,0.25451,82511.0,82509.0,0.0484]
[1744244069490,0.242394,82510.0,82509.0,0.0484]
[1744244069642,0.254513,82510.0,82509.0,0.0484]
[1744244070648,0.242408,82506.0,82503.0,0.00059462]
[1744244070898,0.242412,82504.0,82503.0,0.00059462]
[1744244071109,0.254529,82505.0,82503.0,0.00059462]
[1744244072952,0.254532,82504.0,82503.0,0.00059462]
[1744244075130,0.01212,82506.0,82503.0,0.00059462]
[1744244075131,0.254526,82506.0,82503.0,0.00059462]
[1744244075433,0.01212,82507.0,82504.0,0.242411]
[1744244075609,0.01212,82507.0,82503.0,0.00059462]
[1744244075610,0.242406,82506.0,82503.0,0.00059462]
[1744244075932,0.242412,82504.0,82503.0,0.00059462]
[1744244076657,0.25453,82505.0,82503.0,0.00059462]
[1744244077263,0.242412,82504.0,82503.0,0.00059462]
[1744244078189,0.254526,82506.0,82503.0,0.00059462]
[1744244078738,0.254526,82506.0,82503.0,0.24300862]
[1744244078959,0.242411,82505.0,82503.0,0.00059462]
[1744244080703,0.24241,82505.0,82503.0,0.00059462]
[1744244080883,0.242404,82507.0,82503.0,0.25512862]
[1744244081085,0.01212,82507.0,82503.0,0.00059462]
[1744244081284,0.242406,82506.0,82503.0,0.24300862]
[1744244081625,0.242407,82506.0,82503.0,0.24300862]
[1744244082208,0.242409,82505.0,82503.0,0.24300862]
[1744244082778,0.242409,82505.0,82503.0,0.00059462]
[1744244083128,0.242407,82506.0,82503.0,0.24300962]
[1744244083328,0.242411,82505.0,82503.0,0.00059462]
[1744244083751,0.242403,82507.0,82503.0,0.24300862]
[1744244084011,0.254523,82508.0,82503.0,0.00059462]
[1744244084200,0.24241,82505.0,82503.0,0.00059462]
[1744244084583,0.242408,82506.0,82503.0,0.24300862]
[1744244084729,0.242404,82507.0,82504.0,0.24241]
[1744244085257,0.242407,82506.0,82503.0,0.25512962]
[1744244086030,0.242386,82513.0,82509.0,0.254511]
[1744244086230,0.012122,82492.0,82488.0,0.0001688]
[1744244086435,0.44115002,82492.0,82488.0,0.0001688]
[1744244086637,0.43936367,82492.0,82488.0,0.0001688]
[1744244086842,0.84782085,82492.0,82488.0,0.0001688]
[1744244087045,1.19699231,82492.0,82488.0,0.0001688]
[1744244087239,0.73854358,82492.0,82488.0,0.0001688]
[1744244090535,0.72726703,82492.0,82488.0,0.0001688]
[1744244091100,0.72726703,82492.0,82465.0,0.242526]
[1744244091101,0.012125,82470.0,82469.0,4.5e-07]
[1744244091303,0.65887785,82470.0,82469.0,4.5e-07]
[1744244091480,0.66733503,82470.0,82469.0,4.5e-07]
[1744244092111,0.6763521,82470.0,82469.0,4.5e-07]
[1744244092319,0.60920185,82462.0,82461.0,4.5e-07]
[1744244092516,0.72975567,82462.0,82461.0,4.5e-07]
[1744244092720,0.254671,82459.0,82451.0,0.0123917]
[1744244092923,0.25645735,82459.0,82451.0,0.0123917]
[1744244093435,0.26882509,82459.0,82451.0,0.0123917]
[1744244093609,0.26703874,82459.0,82451.0,0.0123917]
[1744244094216,0.28157959,82459.0,82451.0,0.0123917]
[1744244094439,0.26921185,82459.0,82451.0,0.0123917]
[1744244095326,0.254671,82459.0,82451.0,0.0123917]
[1744244095638,0.254671,82459.0,82452.0,0.00242537]
[1744244096149,0.254671,82459.0,82451.0,0.0123917]
[1744244097290,0.254671,82459.0,82452.0,0.00242537]
[1744244097788,0.254671,82459.0,82451.0,0.0123917]
[1744244102107,0.254671,82459.0,82451.0,0.01481714]
[1744244102241,0.254671,82459.0,82451.0,0.0123917]
[1744244102448,0.254671,82459.0,82451.0,0.2549567]
[1744244102698,0.254671,82459.0,82451.0,0.0123917]
[1744244103889,0.242527,82465.0,82460.0,0.060127]
[1744244104102,0.242527,82465.0,82461.0,0.00242514]
[1744244104308,0.242527,82465.0,82461.0,0.24496314]
[1744244104507,0.0004257,82470.0,82465.0,0.254652]
[1744244104865,0.0004257,82470.0,82466.0,0.012126]
[1744244105076,0.0004257,82470.0,82469.0,0.25464]
[1744244105271,0.0004257,82470.0,82469.0,0.37761838]
[1744244105422,0.0004257,82470.0,82469.0,0.37519382]
[1744244107439,0.0004257,82470.0,82469.0,0.71519382]
[1744244107623,0.0004257,82470.0,82469.0,0.73772524]
[1744244108029,0.0004257,82470.0,82469.0,0.7500528]
[1744244111433,0.0004257,82470.0,82469.0,0.8462528]
[1744244111606,0.0009974,82487.0,82486.0,0.594588]
[1744244111808,0.01212,82502.0,82497.0,0.242432]
[1744244111945,0.242756,82503.0,82498.0,0.12055382]
[1744244112156,0.000338,82503.0,82498.0,0.12055382]
[1744244113021,0.000338,82503.0,82500.0,0.242424]
[1744244113322,0.000338,82503.0,82502.0,0.242418]
[1744244113548,0.000338,82503.0,82502.0,0.27535382]
[1744244115005,0.242753,82503.0,82502.0,0.27535382]
[1744244115411,0.000338,82503.0,82502.0,0.27535382]
[1744244116444,0.000338,82503.0,82502.0,0.51777182]
[1744244116784,0.000338,82503.0,82502.0,0.52989182]
[1744244116926,0.000338,82503.0,82502.0,0.55243823]
[1744244117330,0.000338,82503.0,82502.0,0.52989182]
[1744244117957,0.000338,82503.0,82502.0,0.55242883]
[1744244118161,0.000338,82503.0,82502.0,0.29789083]
[1744244118877,0.000338,82503.0,82502.0,0.27535382]
[1744244119234,0.000338,82503.0,82502.0,0.52989182]
[1744244120042,0.000338,82503.0,82502.0,0.55241345]
[1744244120695,0.000338,82503.0,82502.0,0.29787545]
[1744244120903,0.000338,82503.0,82502.0,0.30999545]
[1744244121446,0.000338,82503.0,82502.0,0.35979545]
[1744244121598,0.000338,82503.0,82502.0,0.60221345]
[1744244124985,0.000338,82503.0,82502.0,0.44741345]
[1744244125188,0.000338,82503.0,82502.0,0.60221345]
[1744244126331,0.000338,82503.0,82502.0,0.34767545]
[1744244126733,0.000338,82503.0,82502.0,0.32515382]
[1744244127222,0.000338,82503.0,82502.0,0.56757182]
[1744244127411,0.000338,82503.0,82502.0,0.59009345]
[1744244128245,0.000338,82503.0,82502.0,0.60221345]
[1744244131343,0.000338,82503.0,82502.0,0.94221345]
[1744244131544,0.000338,82503.0,82502.0,0.98881345]
[1744244133290,0.000338,82503.0,82502.0,1.00011251]
[1744244134448,0.002,82519.0,82518.0,0.078727]
[1744244134598,0.002,82519.0,82518.0,0.44724082]
[1744244134804,0.002,82519.0,82518.0,0.48188045]
[1744244134981,0.002,82519.0,82518.0,0.82188045]
[1744244135983,0.00189941,82519.0,82518.0,0.83317951]
[1744244136187,0.00189941,82519.0,82518.0,2.08077951]
[1744244136388,4.1e-07,82519.0,82518.0,2.08964529]
[1744244136590,0.0003378,82533.0,82518.0,2.08964529]
[1744244136591,0.0003378,82533.0,82532.0,0.347646]
[1744244136820,0.0003378,82533.0,82532.0,0.50202051]
[1744244137242,0.0003378,82533.0,82532.0,0.84202051]
[1744244137848,0.0003378,82533.0,82532.0,0.84214822]
[1744244141248,0.0003378,82533.0,82532.0,0.84714822]
[1744244141602,0.0003378,82533.0,82532.0,0.89714822]
[1744244142011,2e-07,82540.0,82538.0,0.352115]
[1744244142215,8e-07,82544.0,82543.0,0.740311]
[1744244142420,6e-07,82547.0,82546.0,0.790303]
[1744244142574,6e-07,82547.0,82546.0,0.91085682]
[1744244142779,4e-07,82551.0,82548.0,0.644397]
[1744244142993,2e-07,82553.0,82552.0,0.649384]
[1744244143201,2e-07,82553.0,82552.0,0.86583782]
[1744244143413,2e-07,82553.0,82552.0,0.88835945]
[1744244143620,0.002,82579.0,82556.0,0.833159]
[1744244143621,8e-07,82557.0,82556.0,0.833159]
[1744244143827,0.0002984,82560.0,82559.0,0.644362]
[1744244144038,0.0002984,82560.0,82559.0,0.82381488]
[1744244144239,0.0002984,82560.0,82559.0,0.84633651]
[1744244145075,0.00072463,82560.0,82559.0,0.84633651]
[1744244145301,0.00072463,82560.0,82559.0,0.89463651]
[1744244145657,0.00026003,82567.0,82566.0,0.594341]
[1744244145864,0.00026003,82567.0,82566.0,0.71489482]
[1744244146054,0.00026003,82567.0,82566.0,0.73741645]
[1744244146411,0.25459803,82567.0,82566.0,0.31125451]
[1744244146618,0.25459803,82567.0,82566.0,0.03382069]
[1744244147747,0.25459803,82567.0,82566.0,0.02252163]
[1744244148394,0.24225,82559.0,82558.0,0.15688]
[1744244148573,0.24225,82559.0,82558.0,0.27743382]
[1744244149389,0.012112,82560.0,82558.0,0.27743382]
[1744244149574,0.254358,82561.0,82559.0,0.12055382]
[1744244151278,0.254362,82559.0,82558.0,0.01129906]
[1744244152650,0.254365,82558.0,82557.0,0.15688]
[1744244153659,0.0124484,82570.0,82559.0,0.012112]
[1744244153861,0.00026003,82567.0,82566.0,0.254341]
[1744244154065,0.00026003,82567.0,82566.0,0.36278382]
[1744244154352,0.00026003,82567.0,82566.0,0.38526478]
[1744244154703,0.00026003,82567.0,82566.0,0.13185288]
[1744244155106,0.00026003,82567.0,82566.0,0.37408288]
[1744244155434,0.00026003,82567.0,82566.0,0.15433384]
[1744244156030,0.00026003,82567.0,82566.0,0.39656384]
[1744244156251,0.00026003,82567.0,82566.0,0.40867484]
[1744244157577,0.00026003,82567.0,82566.0,0.15433384]
[1744244158253,0.00026003,82567.0,82566.0,0.13185288]
[1744244158588,0.00026003,82567.0,82566.0,0.15433384]
[1744244159190,0.00026003,82567.0,82566.0,0.39656384]
[1744244161502,0.00026003,82567.0,82566.0,0.15433384]
[1744244161727,0.00026003,82567.0,82566.0,0.39656384]
[1744244162015,0.00026003,82567.0,82566.0,0.15433384]
[1744244162267,0.25459803,82567.0,82566.0,0.01129906]
[1744244162467,0.31802523,82567.0,82566.0,0.01129906]
[1744244162672,0.254362,82559.0,82558.0,0.01129906]
[1744244163797,0.254384,82552.0,82551.0,0.15684]
[1744244164029,0.254384,82552.0,82551.0,0.12055382]
[1744244164202,0.254384,82552.0,82551.0,0.27739382]
[1744244164923,0.254384,82552.0,82551.0,0.15684]
[1744244165089,0.254384,82552.0,82539.0,0.242307]
[1744244165090,0.242286,82547.0,82543.0,0.242296]
[1744244165289,0.242286,82547.0,82546.0,0.15688]
[1744244165504,0.242286,82547.0,82546.0,0.12055382]
[1744244165677,0.242286,82547.0,82546.0,0.27743382]
[1744244166313,0.242286,82547.0,82546.0,0.12055382]
[1744244166825,0.012114,82548.0,82546.0,0.12055382]
[1744244166958,0.254395,82549.0,82546.0,0.12055382]
[1744244167394,0.242276,82551.0,82546.0,0.36284182]
[1744244167757,0.242272,82552.0,82547.0,0.242285]
[1744244168012,0.242275,82551.0,82547.0,0.254399]
[1744244170546,0.242278,82550.0,82546.0,0.12055382]
[1744244170754,0.242281,82549.0,82547.0,0.242286]
[1744244170954,0.254391,82550.0,82547.0,0.20968079]
[1744244172018,0.242278,82550.0,82547.0,0.20968079]
[1744244172540,0.242281,82549.0,82546.0,0.12055382]
[1744244172748,0.242278,82550.0,82547.0,0.1554]
[1744244174348,0.242278,82550.0,82547.0,0.397683]
[1744244174748,0.254403,82546.0,82545.0,0.12]
[1744244174914,0.254411,82543.0,82542.0,0.00042623]
[1744244179284,0.012113,82555.0,82542.0,0.00042623]
[1744244179598,0.242281,82549.0,82544.0,0.012114]
[1744244180040,0.242281,82549.0,82546.0,0.242286]
[1744244180340,0.242281,82549.0,82545.0,0.012114]
[1744244180711,0.242285,82548.0,82544.0,0.254406]
[1744244181079,0.254411,82543.0,82542.0,0.00042623]
[1744244181199,0.242297,82543.0,82542.0,0.00042623]
[1744244181397,0.242292,82545.0,82542.0,0.00042623]
[1744244181602,0.242295,82544.0,82542.0,0.00042623]
[1744244181803,0.242297,82543.0,82542.0,0.00042623]
[1744244182404,0.254411,82543.0,82542.0,0.00042623]
[1744244184078,0.242245,82561.0,82544.0,0.012114]
[1744244184251,0.242274,82551.0,82548.0,0.242281]
[1744244184479,0.242277,82550.0,82547.0,0.254399]
[1744244184861,0.242283,82548.0,82545.0,0.12055382]
[1744244185076,0.254403,82546.0,82545.0,0.12055382]
[1744244186405,0.254411,82543.0,82542.0,0.00042623]
[1744244186899,0.30559735,82543.0,82542.0,0.00042623]
[1744244187059,0.31835185,82543.0,82542.0,0.00042623]
[1744244187252,0.26895185,82543.0,82542.0,0.00042623]
[1744244193600,0.66895185,82543.0,82542.0,0.00042623]
[1744244198791,0.83890567,82543.0,82542.0,0.00042623]
[1744244200170,0.84736136,82543.0,82542.0,0.00042623]
[1744244201828,1.18736136,82543.0,82542.0,2.3e-07]
[1744244202990,1.18722624,82543.0,82542.0,2.3e-07]
[1744244204369,0.012115,82537.0,82527.0,0.0001687]
[1744244204582,0.14899602,82537.0,82536.0,0.02012771]
[1744244204789,0.39131102,82537.0,82536.0,0.02012771]
[1744244204991,0.38952467,82537.0,82536.0,0.02012771]
[1744244205196,0.39798036,82537.0,82536.0,0.02012771]
[1744244205714,0.42052169,82537.0,82536.0,0.02012771]
[1744244206997,0.80852169,82537.0,82536.0,0.02012771]
[1744244207423,0.80852169,82537.0,82536.0,7.1e-07]
[1744244207624,0.92895428,82537.0,82536.0,7.1e-07]
[1744244208075,0.642458,82528.0,82527.0,4.1e-07]
[1744244208200,0.77755267,82528.0,82527.0,4.1e-07]
[1744244208420,0.800094,82528.0,82527.0,4.1e-07]
[1744244208842,0.80854969,82528.0,82527.0,4.1e-07]
[1744244209464,0.81763449,82528.0,82527.0,4.1e-07]
[1744244209664,1.21763449,82528.0,82527.0,4.1e-07]
[1744244211172,1.33806708,82528.0,82527.0,4.1e-07]
[1744244211772,1.21763449,82528.0,82527.0,4.1e-07]
[1744244216918,0.254502,82514.0,82513.0,1.1e-07]
[1744244217089,0.60905685,82509.0,82508.0,2.1e-07]
[1744244217299,0.752152,82509.0,82508.0,2.1e-07]
[1744244217503,0.76060769,82509.0,82508.0,2.1e-07]
[1744244217705,1.16060769,82509.0,82508.0,2.1e-07]
[1744244222038,1.17300103,82509.0,82508.0,2.1e-07]
[1744244222240,1.29343362,82509.0,82508.0,2.1e-07]
[1744244222444,1.17291022,82509.0,82508.0,2.1e-07]
[1744244224028,1.1841288,82509.0,82508.0,2.1e-07]
[1744244228238,1.17291022,82509.0,82508.0,2.1e-07]
[1744244231213,1.32687022,82509.0,82508.0,2.1e-07]
[1744244231838,1.37387022,82509.0,82508.0,2.1e-07]
[1744244231953,0.594563,82494.0,82493.0,1e-08]
[1744244232158,0.60910985,82492.0,82491.0,1e-08]
[1744244232405,0.60910985,82492.0,82491.0,4.2e-07]
[1744244232406,0.88362367,82492.0,82491.0,4.2e-07]
[1744244232563,0.90607419,82492.0,82491.0,4.2e-07]
[1744244232762,1.43496247,82492.0,82491.0,4.2e-07]
[1744244232969,1.31452988,82492.0,82491.0,4.2e-07]
[1744244233373,1.32575024,82492.0,82491.0,4.2e-07]
[1744244234236,1.32575024,82492.0,82478.0,0.0001687]
[1744244234237,0.35954085,82491.0,82478.0,1.2e-07]
[1744244234443,0.594609,82479.0,82478.0,1.2e-07]
[1744244234653,0.72970367,82479.0,82478.0,1.2e-07]
[1744244235417,0.76337455,82479.0,82478.0,1.2e-07]
[1744244235573,0.77183024,82479.0,82478.0,1.2e-07]
[1744244236125,0.78080249,82479.0,82478.0,1.2e-07]
[1744244236406,0.594653,82465.0,82464.0,0.0001687]
[1744244236623,0.74096803,82465.0,82464.0,0.0001687]
[1744244236819,0.82137424,82465.0,82464.0,0.0001687]
[1744244237363,1.22137424,82465.0,82464.0,0.0001687]
[1744244237950,1.2335729,82465.0,82464.0,0.0001687]
[1744244238269,1.1840729,82465.0,82464.0,0.0001687]
[1744244238680,1.04897823,82465.0,82464.0,0.0001687]
[1744244238880,1.04897823,82465.0,82464.0,0.0452687]
[1744244239078,1.06351908,82465.0,82464.0,0.0452687]
[1744244240810,1.1840729,82465.0,82464.0,0.0452687]
[1744244241840,1.1840729,82465.0,82464.0,0.0001687]
[1744244241841,1.30450549,82465.0,82464.0,0.0001687]
[1744244242042,0.36666685,82464.0,82463.0,4e-07]
[1744244242265,0.48722067,82464.0,82463.0,4e-07]
[1744244242649,0.50967119,82464.0,82463.0,4e-07]
[1744244242855,0.90967119,82464.0,82463.0,4e-07]
[1744244243048,0.92934724,82464.0,82463.0,4e-07]
[1744244245225,1.17187724,82464.0,82463.0,4e-07]
[1744244251112,1.17182494,82464.0,82463.0,4e-07]
[1744244253584,0.77182494,82464.0,82463.0,4e-07]
[1744244256141,0.74937442,82464.0,82463.0,4e-07]
[1744244257486,1.14937442,82464.0,82463.0,4e-07]
[1744244258045,1.17181716,82464.0,82463.0,4e-07]
[1744244259934,1.29224975,82464.0,82463.0,4e-07]
[1744244260145,1.17181716,82464.0,82463.0,4e-07]
[1744244261211,1.14937442,82464.0,82463.0,4e-07]
[1744244262220,1.17186777,82464.0,82463.0,4e-07]
[1744244263049,1.17196777,82464.0,82463.0,4e-07]
[1744244265239,1.29240036,82464.0,82463.0,4e-07]
[1744244265437,1.17196777,82464.0,82463.0,4e-07]
[1744244274307,1.16074741,82464.0,82463.0,4e-07]
[1744244275576,1.13825406,82464.0,82463.0,4e-07]
[1744244275864,0.73825406,82464.0,82463.0,4e-07]
[1744244276940,0.81967044,82464.0,82463.0,4e-07]
[1744244277678,0.76078489,82464.0,82463.0,4e-07]
[1744244278448,0.77205011,82464.0,82463.0,4e-07]
[1744244278845,0.77205011,82464.0,82458.0,7e-07]
[1744244278846,0.242538,82461.0,82458.0,7e-07]
[1744244279113,0.02666685,82462.0,82451.0,0.0123917]
[1744244279114,0.60923385,82452.0,82451.0,2e-07]
[1744244279252,0.72978767,82452.0,82451.0,2e-07]
[1744244279439,1.31858372,82452.0,82451.0,2e-07]
[1744244279634,1.32698711,82452.0,82451.0,2e-07]
[1744244279894,0.594714,82445.0,82444.0,1e-06]
[1744244280093,0.7523395,82445.0,82444.0,1e-06]
[1744244280505,0.77200811,82445.0,82444.0,1e-06]
[1744244280725,0.78133064,82445.0,82444.0,1e-06]
[1744244281081,0.65145429,82445.0,82444.0,1e-06]
[1744244281280,0.63691344,82445.0,82444.0,1e-06]
[1744244281929,0.62892346,82445.0,82444.0,1e-06]
[1744244282924,0.28892346,82445.0,82444.0,1e-06]
[1744244283132,0.28892346,82445.0,82444.0,0.049801]
[1744244283324,0.26311739,82445.0,82444.0,0.049801]
[1744244283604,0.00840339,82445.0,82444.0,0.049801]
[1744244283806,0.02053239,82445.0,82444.0,0.049801]
[1744244284027,0.02053239,82445.0,82444.0,0.05434926]
[1744244284183,0.02053239,82445.0,82444.0,0.049801]
[1744244284525,0.02053239,82445.0,82444.0,0.05434926]
[1744244285328,0.012129,82445.0,82444.0,0.049801]
[1744244285634,0.254687,82454.0,82449.0,0.0498]
[1744244285884,0.012127,82455.0,82450.0,0.0484]
[1744244286092,0.254693,82452.0,82450.0,0.05172809]
[1744244287249,0.242565,82452.0,82450.0,0.05172809]
[1744244287455,0.242565,82452.0,82451.0,0.00126018]
[1744244287860,0.242565,82452.0,82451.0,0.00126055]
[1744244288237,0.242565,82452.0,82450.0,0.05172809]
[1744244288599,0.242565,82452.0,82451.0,0.00126055]
[1744244288917,0.012128,82451.0,82450.0,0.05172809]
[1744244289126,0.01391435,82451.0,82450.0,0.0484]
[1744244289586,0.01391435,82451.0,82449.0,0.0498]
[1744244289587,0.26923985,82450.0,82449.0,0.0498]
[1744244289912,0.280491,82450.0,82449.0,0.0498]
[1744244290119,0.30299331,82450.0,82449.0,0.0498]
[1744244290462,0.31143191,82450.0,82449.0,0.0498]
[1744244291217,0.31143191,82450.0,82444.0,1e-06]
[1744244291218,0.254714,82445.0,82444.0,1e-06]
[1744244291379,0.2710412,82445.0,82444.0,1e-06]
[1744244291580,0.26925485,82445.0,82444.0,1e-06]
[1744244292012,0.29175716,82445.0,82444.0,1e-06]
[1744244292167,0.30300831,82445.0,82444.0,1e-06]
[1744244292366,0.31144691,82445.0,82444.0,1e-06]
[1744244294922,0.65144691,82445.0,82444.0,1e-06]
[1744244296338,0.63690606,82445.0,82444.0,1e-06]
[1744244296938,0.65144691,82445.0,82444.0,1e-06]
[1744244298314,0.65144691,82445.0,82444.0,0.046001]
[1744244298923,0.65144691,82445.0,82444.0,0.05296096]
[1744244299123,0.65144691,82445.0,82444.0,0.046001]
[1744244299701,0.31144691,82445.0,82444.0,0.046001]
[1744244300068,0.29690606,82445.0,82444.0,0.046001]
[1744244300272,0.29690606,82445.0,82444.0,0.05282195]
[1744244300530,0.29690606,82445.0,82444.0,0.046001]